[Event "*** Titled Tuesday 3|2 Blitz"]
[Site "Chess.com"]
[Date "2015.11.03"]
[Round "6"]
[White "Danirod"]
[Black "Oligan22"]
[Result "0-1"]
[WhiteElo "2394"]
[BlackElo "2177"]
[TimeControl "180+2"]
[EndTime "12:16:20 PST"]
[Termination "Oligan22 won by resignation"]

1. e4 {[%clk 0:03:01.9]} 1... c5 {[%clk 0:03:00.6]} 2. Nf3 {[%clk 0:03:03.1]}
2... e6 {[%clk 0:03:01.8]} 3. c3 {[%clk 0:03:04.3]} 3... d5 {[%clk 0:03:01.8]}
4. exd5 {[%clk 0:03:05.6]} 4... Qxd5 {[%clk 0:03:03.7]} 5. d4 {[%clk 0:03:06.9]}
5... Nf6 {[%clk 0:03:04.5]} 6. Na3 {[%clk 0:03:08.2]} 6... a6 {[%clk 0:03:02.4]}
7. Nc4 {[%clk 0:03:04.9]} 7... Nbd7 {[%clk 0:03:03.2]} 8. Be3 {[%clk 0:03:03.2]}
8... b6 {[%clk 0:03:01.2]} 9. Be2 {[%clk 0:02:54.6]} 9... Bb7 {[%clk 0:02:59.9]}
10. Nce5 {[%clk 0:02:49.3]} 10... Nxe5 {[%clk 0:02:48.5]} 11. dxe5 {[%clk
0:02:50.3]} 11... Nd7 {[%clk 0:02:47.1]} 12. c4 {[%clk 0:02:38.3]} 12... Qc6
{[%clk 0:02:38.7]} 13. Bg5 {[%clk 0:02:28.5]} 13... h6 {[%clk 0:02:24.8]} 14.
Bh4 {[%clk 0:02:29.3]} 14... g5 {[%clk 0:02:23.9]} 15. Bg3 {[%clk 0:02:30.7]}
15... Be7 {[%clk 0:02:15]} 16. Qd2 {[%clk 0:02:08.5]} 16... Rd8 {[%clk
0:02:08.6]} 17. Qe3 {[%clk 0:01:53.6]} 17... Qe4 {[%clk 0:01:49]} 18. Qxe4
{[%clk 0:01:44.8]} 18... Bxe4 {[%clk 0:01:50.9]} 19. h3 {[%clk 0:01:46.2]} 19...
Nb8 {[%clk 0:01:39.3]} 20. O-O {[%clk 0:01:41.7]} 20... Nc6 {[%clk 0:01:36.6]}
21. Rfd1 {[%clk 0:01:39.9]} 21... O-O {[%clk 0:01:36.8]} 22. Nd2 {[%clk
0:01:36.2]} 22... Bc2 {[%clk 0:01:35.9]} 23. Nf1 {[%clk 0:01:15.3]} 23... Bxd1
{[%clk 0:01:35.2]} 24. Bxd1 {[%clk 0:01:17.2]} 24... Rd4 {[%clk 0:01:31.1]} 25.
Ne3 {[%clk 0:01:18.1]} 25... Rfd8 {[%clk 0:01:29.5]} 26. Bf3 {[%clk 0:01:19.2]}
26... Nb4 {[%clk 0:01:20.1]} 27. b3 {[%clk 0:01:14.1]} 27... f6 {[%clk
0:01:08.1]} 28. Ng4 {[%clk 0:01:03.1]} 28... f5 {[%clk 0:01:04.3]} 29. Nf6+
{[%clk 0:00:49.3]} 29... Bxf6 {[%clk 0:01:01.7]} 30. exf6 {[%clk 0:00:51.2]}
30... f4 {[%clk 0:01:02.3]} 31. Bh2 {[%clk 0:00:52.8]} 31... Kf7 {[%clk
0:00:58.5]} 32. g3 {[%clk 0:00:54]} 32... e5 {[%clk 0:00:58.4]} 33. gxf4 {[%clk
0:00:55.9]} 33... exf4 {[%clk 0:00:53.8]} 34. Re1 {[%clk 0:00:54.9]} 34... Kxf6
{[%clk 0:00:53.9]} 35. Kg2 {[%clk 0:00:51.5]} 35... Nd3 {[%clk 0:00:54.3]} 36.
Re2 {[%clk 0:00:52.3]} 36... Ne5 {[%clk 0:00:53.2]} 37. Bd5 {[%clk 0:00:52.8]}
37... R8xd5 {[%clk 0:00:52]} 0-1

[Event "*** Titled Tuesday 3|2 Blitz"]
[Site "Chess.com"]
[Date "2015.11.03"]
[Round "6"]
[White "Frolyanov_D"]
[Black "BjarkeSahl"]
[Result "1-0"]
[WhiteElo "2332"]
[BlackElo "2149"]
[TimeControl "180+2"]
[EndTime "12:16:36 PST"]
[Termination "Frolyanov_D won by resignation"]

1. d4 {[%clk 0:03:01.9]} 1... Nf6 {[%clk 0:02:55.5]} 2. c4 {[%clk 0:03:02.7]}
2... e6 {[%clk 0:02:57.1]} 3. Nf3 {[%clk 0:03:03.2]} 3... c5 {[%clk 0:02:53]} 4.
d5 {[%clk 0:03:03.2]} 4... exd5 {[%clk 0:02:54.2]} 5. cxd5 {[%clk 0:03:04.9]}
5... d6 {[%clk 0:02:55.7]} 6. Nc3 {[%clk 0:03:04.6]} 6... a6 {[%clk 0:02:57.3]}
7. a4 {[%clk 0:03:01.8]} 7... g6 {[%clk 0:02:58.2]} 8. Bf4 {[%clk 0:03:01.9]}
8... Bg7 {[%clk 0:02:59]} 9. e3 {[%clk 0:03:02.7]} 9... O-O {[%clk 0:03:00.5]}
10. h3 {[%clk 0:03:03.4]} 10... Re8 {[%clk 0:02:57.8]} 11. Be2 {[%clk
0:03:03.9]} 11... Ne4 {[%clk 0:02:58.7]} 12. Nxe4 {[%clk 0:02:59.9]} 12... Rxe4
{[%clk 0:02:59.4]} 13. Nd2 {[%clk 0:03:00.9]} 13... Rb4 {[%clk 0:02:59.4]} 14.
Nc4 {[%clk 0:02:57.1]} 14... Bxb2 {[%clk 0:02:03.4]} 15. Nxb2 {[%clk 0:02:54.2]}
15... Rxb2 {[%clk 0:02:04.5]} 16. O-O {[%clk 0:02:54.6]} 16... Qf6 {[%clk
0:02:02.5]} 17. a5 {[%clk 0:02:45.5]} 17... Nd7 {[%clk 0:02:01.8]} 18. Rb1
{[%clk 0:02:10.2]} 18... Rxb1 {[%clk 0:01:58.2]} 19. Qxb1 {[%clk 0:02:10.2]}
19... h5 {[%clk 0:01:59.4]} 20. Rc1 {[%clk 0:01:56.1]} 20... Ne5 {[%clk
0:01:42.9]} 21. Qb6 {[%clk 0:01:55]} 21... Kg7 {[%clk 0:01:34.6]} 22. h4 {[%clk
0:01:29.8]} 22... Qe7 {[%clk 0:01:12]} 23. Bg3 {[%clk 0:01:05.5]} 23... Bf5
{[%clk 0:01:10.7]} 24. Qb2 {[%clk 0:00:57.4]} 24... Kh7 {[%clk 0:01:07.3]} 25.
Qc3 {[%clk 0:00:57.3]} 25... Re8 {[%clk 0:01:06.3]} 26. f3 {[%clk 0:00:56.4]}
26... Bc8 {[%clk 0:01:05.7]} 27. e4 {[%clk 0:00:57.1]} 27... Nd7 {[%clk
0:01:03.4]} 28. Bf1 {[%clk 0:00:53.2]} 28... f5 {[%clk 0:00:47.2]} 29. exf5
{[%clk 0:00:50.8]} 29... gxf5 {[%clk 0:00:48]} 30. Kh2 {[%clk 0:00:49.2]} 30...
Kg6 {[%clk 0:00:48.2]} 31. Bd3 {[%clk 0:00:48.3]} 31... Qe3 {[%clk 0:00:29.2]}
32. Re1 {[%clk 0:00:44.5]} 1-0

[Event "*** Titled Tuesday 3|2 Blitz"]
[Site "Chess.com"]
[Date "2015.11.03"]
[Round "6"]
[White "DeviatkinAndrey"]
[Black "GrigorGrigorov"]
[Result "0-1"]
[WhiteElo "2457"]
[BlackElo "2440"]
[TimeControl "180+2"]
[EndTime "12:16:43 PST"]
[Termination "GrigorGrigorov won by resignation"]

1. b3 {[%clk 0:02:57]} 1... Nf6 {[%clk 0:02:59.8]} 2. Bb2 {[%clk 0:02:57.6]}
2... c5 {[%clk 0:03:01]} 3. Nf3 {[%clk 0:02:53.6]} 3... e6 {[%clk 0:03:01.9]} 4.
g3 {[%clk 0:02:49.5]} 4... b6 {[%clk 0:03:02.6]} 5. Bg2 {[%clk 0:02:50.6]} 5...
Bb7 {[%clk 0:03:03.4]} 6. O-O {[%clk 0:02:52.3]} 6... Be7 {[%clk 0:03:03.1]} 7.
d3 {[%clk 0:02:49.6]} 7... O-O {[%clk 0:03:00.9]} 8. e4 {[%clk 0:02:50.7]} 8...
d5 {[%clk 0:02:57.7]} 9. Nbd2 {[%clk 0:02:36.8]} 9... dxe4 {[%clk 0:02:44]} 10.
Ng5 {[%clk 0:02:34.1]} 10... Nc6 {[%clk 0:02:39]} 11. Ngxe4 {[%clk 0:02:25.4]}
11... Nd5 {[%clk 0:02:35]} 12. Nf3 {[%clk 0:01:57.2]} 12... f5 {[%clk
0:02:03.6]} 13. Nc3 {[%clk 0:01:46.8]} 13... Bf6 {[%clk 0:02:04.1]} 14. Qd2
{[%clk 0:01:47.5]} 14... Nd4 {[%clk 0:01:55]} 15. Nxd5 {[%clk 0:01:11.2]} 15...
Nxf3+ {[%clk 0:01:31]} 16. Bxf3 {[%clk 0:01:11.6]} 16... Bxb2 {[%clk 0:01:31.8]}
17. Rab1 {[%clk 0:01:08.9]} 17... Bxd5 {[%clk 0:01:21.2]} 18. Bxd5 {[%clk
0:01:08.4]} 18... exd5 {[%clk 0:01:19.4]} 19. Rxb2 {[%clk 0:01:09.8]} 19... f4
{[%clk 0:01:20.5]} 20. Rbb1 {[%clk 0:00:52.3]} 20... f3 {[%clk 0:01:19.8]} 21.
Kh1 {[%clk 0:00:28.4]} 21... Qd7 {[%clk 0:01:20.7]} 22. Rbe1 {[%clk 0:00:26.4]}
22... Rf6 {[%clk 0:01:00.6]} 23. Qg5 {[%clk 0:00:11.7]} 23... Raf8 {[%clk
0:00:40.2]} 24. Re5 {[%clk 0:00:11.9]} 24... Qh3 {[%clk 0:00:27.1]} 25. Rg1
{[%clk 0:00:06.4]} 25... Rh6 {[%clk 0:00:28]} 26. Qxh6 {[%clk 0:00:04.2]} 26...
gxh6 {[%clk 0:00:24.9]} 0-1

[Event "*** Titled Tuesday 3|2 Blitz"]
[Site "Chess.com"]
[Date "2015.11.03"]
[Round "6"]
[White "AleksandrNevski"]
[Black "AndroQueen"]
[Result "1-0"]
[WhiteElo "2336"]
[BlackElo "2236"]
[TimeControl "180+2"]
[EndTime "12:17:19 PST"]
[Termination "AleksandrNevski won by resignation"]

1. Nf3 {[%clk 0:03:01.9]} 1... Nf6 {[%clk 0:02:58.8]} 2. g3 {[%clk 0:03:02.3]}
2... c5 {[%clk 0:02:55.9]} 3. Bg2 {[%clk 0:03:02.5]} 3... Nc6 {[%clk 0:02:51.1]}
4. O-O {[%clk 0:03:04]} 4... e5 {[%clk 0:02:52.1]} 5. c4 {[%clk 0:03:04.7]} 5...
d5 {[%clk 0:02:52.8]} 6. d3 {[%clk 0:03:06]} 6... d4 {[%clk 0:02:51.1]} 7. e3
{[%clk 0:03:06.5]} 7... Be7 {[%clk 0:02:47.8]} 8. exd4 {[%clk 0:03:07.7]} 8...
exd4 {[%clk 0:02:48.9]} 9. Bf4 {[%clk 0:03:04.4]} 9... O-O {[%clk 0:02:49.5]}
10. Ne5 {[%clk 0:03:05.5]} 10... Nxe5 {[%clk 0:02:48.1]} 11. Bxe5 {[%clk
0:03:06.8]} 11... Bd6 {[%clk 0:02:46.8]} 12. Bxf6 {[%clk 0:03:07.7]} 12... Qxf6
{[%clk 0:02:47.5]} 13. Nd2 {[%clk 0:03:09.6]} 13... Bf5 {[%clk 0:02:39.2]} 14.
Qc2 {[%clk 0:02:35.2]} 14... Rab8 {[%clk 0:02:33.8]} 15. Rfe1 {[%clk 0:02:35.9]}
15... b6 {[%clk 0:02:29.6]} 16. Re2 {[%clk 0:02:27.9]} 16... Rfe8 {[%clk
0:02:27.9]} 17. Rae1 {[%clk 0:02:29.3]} 17... Rxe2 {[%clk 0:02:28.9]} 18. Rxe2
{[%clk 0:02:30.7]} 18... h5 {[%clk 0:02:27.1]} 19. Ne4 {[%clk 0:02:22.9]} 19...
Bxe4 {[%clk 0:02:18.2]} 20. Rxe4 {[%clk 0:02:14.1]} 20... g6 {[%clk 0:02:18.9]}
21. Qa4 {[%clk 0:02:14]} 21... a5 {[%clk 0:02:09.3]} 22. h4 {[%clk 0:01:49.5]}
22... Kg7 {[%clk 0:02:07.3]} 23. Qc6 {[%clk 0:01:39.2]} 23... Bf8 {[%clk
0:01:50.8]} 24. Qc7 {[%clk 0:01:06.7]} 24... Qd6 {[%clk 0:01:43.7]} 25. Qa7
{[%clk 0:01:00.4]} 25... Rd8 {[%clk 0:01:43.2]} 26. Bh3 {[%clk 0:00:55.1]} 26...
Qb8 {[%clk 0:01:33.8]} 27. Qxb8 {[%clk 0:00:42.3]} 27... Rxb8 {[%clk 0:01:34.1]}
28. Bd7 {[%clk 0:00:44]} 28... Rb7 {[%clk 0:01:29.2]} 29. Bc6 {[%clk 0:00:44.5]}
29... Re7 {[%clk 0:01:30.3]} 30. f4 {[%clk 0:00:44.2]} 30... f5 {[%clk
0:01:24.4]} 31. Rxe7+ {[%clk 0:00:43.4]} 31... Bxe7 {[%clk 0:01:25.5]} 32. Kf2
{[%clk 0:00:45.2]} 32... Kf6 {[%clk 0:01:26.2]} 33. Be8 {[%clk 0:00:46.1]} 33...
Bd8 {[%clk 0:01:01.6]} 34. Ke2 {[%clk 0:00:46.6]} 34... b5 {[%clk 0:00:36.9]}
35. cxb5 {[%clk 0:00:43.1]} 35... c4 {[%clk 0:00:29.2]} 36. dxc4 {[%clk
0:00:43.6]} 36... Bb6 {[%clk 0:00:30.8]} 37. Kd3 {[%clk 0:00:44.4]} 37... Bc5
{[%clk 0:00:31.9]} 38. a3 {[%clk 0:00:43.2]} 38... Kg7 {[%clk 0:00:23.2]} 39. b6
{[%clk 0:00:37]} 39... Bxb6 {[%clk 0:00:22.1]} 40. b4 {[%clk 0:00:38.7]} 40...
axb4 {[%clk 0:00:23.4]} 41. axb4 {[%clk 0:00:40.5]} 1-0

[Event "*** Titled Tuesday 3|2 Blitz"]
[Site "Chess.com"]
[Date "2015.11.03"]
[Round "6"]
[White "Chopper1905"]
[Black "Boryboy"]
[Result "1-0"]
[WhiteElo "2544"]
[BlackElo "2463"]
[TimeControl "180+2"]
[EndTime "12:17:24 PST"]
[Termination "Chopper1905 won by resignation"]

1. Nf3 {[%clk 0:03:01.9]} 1... e6 {[%clk 0:02:41.4]} 2. g3 {[%clk 0:03:02.1]}
2... d5 {[%clk 0:02:42.3]} 3. c4 {[%clk 0:03:03.3]} 3... Nf6 {[%clk 0:02:43.4]}
4. Bg2 {[%clk 0:03:04.6]} 4... dxc4 {[%clk 0:02:43.5]} 5. Qa4+ {[%clk
0:03:05.1]} 5... c6 {[%clk 0:02:43.7]} 6. Qxc4 {[%clk 0:03:06]} 6... b5 {[%clk
0:02:44.6]} 7. Qc2 {[%clk 0:03:06.9]} 7... Bb7 {[%clk 0:02:46]} 8. d4 {[%clk
0:03:07.1]} 8... Nbd7 {[%clk 0:02:46.3]} 9. O-O {[%clk 0:03:07]} 9... Rc8 {[%clk
0:02:46.1]} 10. a4 {[%clk 0:03:05.4]} 10... c5 {[%clk 0:02:47.1]} 11. axb5
{[%clk 0:03:02.6]} 11... cxd4 {[%clk 0:02:45.7]} 12. Qd1 {[%clk 0:03:01.1]}
12... Bc5 {[%clk 0:02:42.4]} 13. Nbd2 {[%clk 0:02:56.9]} 13... e5 {[%clk
0:02:20.4]} 14. Nc4 {[%clk 0:02:45.8]} 14... Qe7 {[%clk 0:02:17]} 15. Na5 {[%clk
0:02:42.7]} 15... Bxf3 {[%clk 0:02:15.4]} 16. exf3 {[%clk 0:02:39.1]} 16... O-O
{[%clk 0:01:50.3]} 17. Nc6 {[%clk 0:02:38.1]} 17... Qd6 {[%clk 0:01:51.4]} 18.
Ra6 {[%clk 0:02:30.6]} 18... Qc7 {[%clk 0:01:49.4]} 19. b4 {[%clk 0:02:29.2]}
19... Bb6 {[%clk 0:01:49]} 20. f4 {[%clk 0:02:30.7]} 20... e4 {[%clk 0:01:40.4]}
21. Bb2 {[%clk 0:02:08.7]} 21... Nb8 {[%clk 0:01:25.9]} 22. Rxb6 {[%clk
0:01:45]} 22... axb6 {[%clk 0:01:23]} 23. Nxd4 {[%clk 0:01:46]} 23... Qd7 {[%clk
0:01:01.7]} 24. Qa1 {[%clk 0:01:37.8]} 24... Rfd8 {[%clk 0:01:00.5]} 25. Re1
{[%clk 0:01:31.4]} 25... Rc4 {[%clk 0:00:59.1]} 26. Rd1 {[%clk 0:01:27.5]} 26...
Rxb4 {[%clk 0:00:57.6]} 27. Bc3 {[%clk 0:01:28.9]} 27... Rxb5 {[%clk 0:00:55.8]}
28. Bh3 {[%clk 0:01:18.3]} 28... Qd6 {[%clk 0:00:32.8]} 29. Re1 {[%clk
0:01:13.7]} 29... Rh5 {[%clk 0:00:20.4]} 30. Nf5 {[%clk 0:01:08.3]} 30... Qe6
{[%clk 0:00:07.3]} 31. Nh6+ {[%clk 0:01:08.4]} 31... Rxh6 {[%clk 0:00:08]} 32.
Bxe6 {[%clk 0:01:10]} 32... fxe6 {[%clk 0:00:09.9]} 33. Qa7 {[%clk 0:00:54.2]}
33... Nbd7 {[%clk 0:00:10.1]} 34. Rd1 {[%clk 0:00:53.9]} 34... Nd5 {[%clk
0:00:11.5]} 35. Rxd5 {[%clk 0:00:49.4]} 35... exd5 {[%clk 0:00:12.5]} 36. Qc7
{[%clk 0:00:50.9]} 36... Rf8 {[%clk 0:00:04.1]} 37. Qxd7 {[%clk 0:00:51.7]}
37... Rg6 {[%clk 0:00:05.9]} 38. Qxd5+ {[%clk 0:00:49.2]} 38... Kh8 {[%clk
0:00:07.8]} 39. Qxe4 {[%clk 0:00:50.1]} 1-0

[Event "*** Titled Tuesday 3|2 Blitz"]
[Site "Chess.com"]
[Date "2015.11.03"]
[Round "6"]
[White "kharposh"]
[Black "Nutflush"]
[Result "1-0"]
[WhiteElo "2062"]
[BlackElo "1888"]
[TimeControl "180+2"]
[EndTime "12:17:41 PST"]
[Termination "kharposh won by resignation"]

1. e4 {[%clk 0:03:01.9]} 1... c5 {[%clk 0:03:00.2]} 2. Nf3 {[%clk 0:03:02.9]}
2... Nc6 {[%clk 0:03:00.4]} 3. d4 {[%clk 0:03:03.5]} 3... cxd4 {[%clk
0:03:02.3]} 4. Nxd4 {[%clk 0:03:05.3]} 4... Nf6 {[%clk 0:03:03.8]} 5. Nc3 {[%clk
0:03:06.1]} 5... e5 {[%clk 0:03:05.3]} 6. Nb3 {[%clk 0:03:04.1]} 6... Bb4 {[%clk
0:03:04.4]} 7. Bd3 {[%clk 0:03:04.3]} 7... d5 {[%clk 0:03:03.5]} 8. exd5 {[%clk
0:03:04]} 8... Qxd5 {[%clk 0:02:41.3]} 9. O-O {[%clk 0:03:02.6]} 9... Bxc3
{[%clk 0:02:42.4]} 10. bxc3 {[%clk 0:03:04.2]} 10... O-O {[%clk 0:02:33.2]} 11.
c4 {[%clk 0:03:04.4]} 11... Qd6 {[%clk 0:02:28.2]} 12. Qe2 {[%clk 0:02:33.1]}
12... Bg4 {[%clk 0:02:26.2]} 13. f3 {[%clk 0:02:33.7]} 13... Bh5 {[%clk
0:02:25.9]} 14. c5 {[%clk 0:02:22.9]} 14... Qc7 {[%clk 0:02:25.2]} 15. Bg5
{[%clk 0:02:21.7]} 15... Nd5 {[%clk 0:02:13.1]} 16. Qe4 {[%clk 0:02:20.2]} 16...
Bg6 {[%clk 0:01:46]} 17. Qxd5 {[%clk 0:02:19.6]} 17... Nb4 {[%clk 0:01:44.6]}
18. Qc4 {[%clk 0:02:16.8]} 18... Nxd3 {[%clk 0:01:40.8]} 19. cxd3 {[%clk
0:02:17.4]} 19... b5 {[%clk 0:01:41]} 20. Qxb5 {[%clk 0:02:12.4]} 20... Rab8
{[%clk 0:01:40.7]} 21. Qc4 {[%clk 0:02:12.7]} 21... Rfc8 {[%clk 0:01:40.3]} 22.
g3 {[%clk 0:02:07.7]} 22... a5 {[%clk 0:01:39.9]} 23. Rac1 {[%clk 0:02:01]}
23... Rb4 {[%clk 0:01:39.9]} 24. Qc3 {[%clk 0:01:59.2]} 24... Ra4 {[%clk
0:01:39.1]} 25. Rfe1 {[%clk 0:01:54.6]} 25... Rxa2 {[%clk 0:01:37.3]} 26. Rc2
{[%clk 0:01:40.8]} 26... Ra3 {[%clk 0:01:32.7]} 27. Ra1 {[%clk 0:01:37]} 27...
Rxa1+ {[%clk 0:01:28.4]} 28. Nxa1 {[%clk 0:01:35.5]} 28... f6 {[%clk 0:01:30.3]}
29. Be3 {[%clk 0:01:35.1]} 29... Qb7 {[%clk 0:01:21.8]} 30. Nb3 {[%clk
0:01:23.1]} 30... Bf7 {[%clk 0:01:20.9]} 31. Nxa5 {[%clk 0:01:22.9]} 31... Qb1+
{[%clk 0:01:21.2]} 32. Kf2 {[%clk 0:01:22]} 32... Ra8 {[%clk 0:01:14.3]} 33. Nc4
{[%clk 0:01:06.2]} 33... Qh1 {[%clk 0:01:14.2]} 34. Ke2 {[%clk 0:00:51.8]} 34...
Qxh2+ {[%clk 0:01:13.8]} 35. Bf2 {[%clk 0:00:52.7]} 35... Qh1 {[%clk 0:01:10.4]}
36. Rc1 {[%clk 0:00:49.4]} 36... Ra2+ {[%clk 0:01:09.8]} 37. Nd2 {[%clk
0:00:50]} 37... Qh5 {[%clk 0:01:01.7]} 38. c6 {[%clk 0:00:49.2]} 38... Bd5
{[%clk 0:01:01.6]} 39. Rc2 {[%clk 0:00:39.7]} 39... Ra8 {[%clk 0:00:48.4]} 40.
Qc5 {[%clk 0:00:40]} 40... Qf7 {[%clk 0:00:46.9]} 41. c7 {[%clk 0:00:38.7]}
41... Rc8 {[%clk 0:00:47.3]} 42. Ne4 {[%clk 0:00:39.6]} 42... h6 {[%clk
0:00:38.3]} 43. Nd6 {[%clk 0:00:39.1]} 43... Bxf3+ {[%clk 0:00:30.1]} 44. Kxf3
{[%clk 0:00:38.5]} 44... Qh5+ {[%clk 0:00:29.7]} 45. Kg2 {[%clk 0:00:39.2]} 1-0

[Event "*** Titled Tuesday 3|2 Blitz"]
[Site "Chess.com"]
[Date "2015.11.03"]
[Round "6"]
[White "GregShahade"]
[Black "ChadaevNikolay"]
[Result "0-1"]
[WhiteElo "2315"]
[BlackElo "2576"]
[TimeControl "180+2"]
[EndTime "12:17:53 PST"]
[Termination "ChadaevNikolay won by resignation"]

1. c4 {[%clk 0:03:01.9]} 1... Nf6 {[%clk 0:02:58.3]} 2. Nc3 {[%clk 0:03:01.6]}
2... g6 {[%clk 0:02:59.4]} 3. g3 {[%clk 0:03:00.2]} 3... Bg7 {[%clk 0:03:00.3]}
4. Bg2 {[%clk 0:03:01.7]} 4... O-O {[%clk 0:03:01.8]} 5. Nf3 {[%clk 0:03:03.2]}
5... d6 {[%clk 0:03:03.2]} 6. O-O {[%clk 0:03:04.7]} 6... Nc6 {[%clk 0:03:04.6]}
7. d3 {[%clk 0:03:05.7]} 7... e5 {[%clk 0:03:00.3]} 8. Rb1 {[%clk 0:03:06.5]}
8... a5 {[%clk 0:03:00.7]} 9. a3 {[%clk 0:03:07.1]} 9... h6 {[%clk 0:03:01]} 10.
b4 {[%clk 0:03:07.4]} 10... axb4 {[%clk 0:03:01.9]} 11. axb4 {[%clk 0:03:09.3]}
11... Be6 {[%clk 0:03:03.4]} 12. b5 {[%clk 0:03:09.7]} 12... Ne7 {[%clk
0:03:03.9]} 13. Bb2 {[%clk 0:03:09]} 13... Qd7 {[%clk 0:03:02.6]} 14. Re1 {[%clk
0:02:59.9]} 14... Nh5 {[%clk 0:02:51.2]} 15. Nd2 {[%clk 0:02:58.7]} 15... c6
{[%clk 0:02:48.2]} 16. Qb3 {[%clk 0:02:55.7]} 16... d5 {[%clk 0:02:43.5]} 17.
bxc6 {[%clk 0:02:29.1]} 17... bxc6 {[%clk 0:02:44]} 18. Ba3 {[%clk 0:02:27.9]}
18... e4 {[%clk 0:01:46.6]} 19. Bxe7 {[%clk 0:01:56.5]} 19... Qxe7 {[%clk
0:01:44.4]} 20. cxd5 {[%clk 0:01:57.1]} 20... Ra3 {[%clk 0:01:43.6]} 21. Qd1
{[%clk 0:00:40.1]} 21... cxd5 {[%clk 0:01:41.6]} 22. Nb5 {[%clk 0:00:37.2]}
22... e3 {[%clk 0:01:30]} 23. fxe3 {[%clk 0:00:28.2]} 23... Ra5 {[%clk
0:01:28.8]} 24. Nf1 {[%clk 0:00:28.7]} 24... Re8 {[%clk 0:01:16.5]} 25. Qd2
{[%clk 0:00:25.3]} 25... Rea8 {[%clk 0:01:08.7]} 26. Nd4 {[%clk 0:00:19.3]}
26... Ra2 {[%clk 0:01:06.9]} 27. Qb4 {[%clk 0:00:20.3]} 27... Qd7 {[%clk
0:01:04.1]} 28. Qb7 {[%clk 0:00:15.6]} 28... Qxb7 {[%clk 0:00:56.2]} 29. Rxb7
{[%clk 0:00:15.5]} 29... Bxd4 {[%clk 0:00:57.5]} 30. exd4 {[%clk 0:00:17.1]}
30... R8a4 {[%clk 0:00:58.5]} 31. e3 {[%clk 0:00:09.2]} 31... Nf6 {[%clk
0:00:58.8]} 32. Bf3 {[%clk 0:00:07.7]} 32... R4a3 {[%clk 0:00:46.5]} 33. Re2
{[%clk 0:00:07.2]} 33... Bf5 {[%clk 0:00:39.9]} 34. e4 {[%clk 0:00:02.1]} 34...
dxe4 {[%clk 0:00:37.9]} 35. Rxa2 {[%clk 0:00:02.9]} 35... Rxa2 {[%clk
0:00:37.6]} 36. dxe4 {[%clk 0:00:04.3]} 36... Bxe4 {[%clk 0:00:38.8]} 37. Bxe4
{[%clk 0:00:04.6]} 37... Nxe4 {[%clk 0:00:40.7]} 38. d5 {[%clk 0:00:05.7]} 38...
Kg7 {[%clk 0:00:34.3]} 39. Re7 {[%clk 0:00:05.4]} 39... Nf6 {[%clk 0:00:31.6]}
40. Re5 {[%clk 0:00:03.6]} 40... Ra1 {[%clk 0:00:29.7]} 41. Kf2 {[%clk
0:00:04.1]} 41... Ng4+ {[%clk 0:00:30.2]} 42. Kg2 {[%clk 0:00:04.7]} 42... Nxe5
{[%clk 0:00:32.1]} 0-1

[Event "*** Titled Tuesday 3|2 Blitz"]
[Site "Chess.com"]
[Date "2015.11.03"]
[Round "6"]
[White "FairChess_on_YouTube"]
[Black "Fandorine"]
[Result "1-0"]
[WhiteElo "2715"]
[BlackElo "2540"]
[TimeControl "180+2"]
[EndTime "12:18:08 PST"]
[Termination "FairChess_on_YouTube won on time"]

1. Nf3 {[%clk 0:03:01.9]} 1... g6 {[%clk 0:02:59.5]} 2. d4 {[%clk 0:03:01.3]}
2... Bg7 {[%clk 0:03:00.9]} 3. e4 {[%clk 0:03:02]} 3... d6 {[%clk 0:03:01.5]} 4.
h3 {[%clk 0:03:02]} 4... Nf6 {[%clk 0:03:02.4]} 5. Nc3 {[%clk 0:03:03]} 5... O-O
{[%clk 0:03:03.8]} 6. Be2 {[%clk 0:03:01.8]} 6... a6 {[%clk 0:03:04.1]} 7. a4
{[%clk 0:03:02.1]} 7... Nc6 {[%clk 0:03:05.1]} 8. d5 {[%clk 0:02:54]} 8... Nb4
{[%clk 0:03:05.2]} 9. O-O {[%clk 0:02:54.7]} 9... c6 {[%clk 0:03:04.6]} 10. a5
{[%clk 0:02:48.2]} 10... cxd5 {[%clk 0:03:02.2]} 11. exd5 {[%clk 0:02:49.9]}
11... Bd7 {[%clk 0:03:03.5]} 12. Be3 {[%clk 0:02:48.4]} 12... Rc8 {[%clk
0:02:57.2]} 13. Bb6 {[%clk 0:02:43.9]} 13... Qe8 {[%clk 0:02:57.1]} 14. Ra3
{[%clk 0:02:45]} 14... Rxc3 {[%clk 0:02:50.2]} 15. Rxc3 {[%clk 0:02:40.1]} 15...
Nfxd5 {[%clk 0:02:51.2]} 16. Ra3 {[%clk 0:02:32.3]} 16... Bxb2 {[%clk
0:02:47.7]} 17. Rb3 {[%clk 0:02:33.4]} 17... Bf6 {[%clk 0:02:14.9]} 18. c4
{[%clk 0:02:17.9]} 18... Nxb6 {[%clk 0:01:53.6]} 19. Rxb4 {[%clk 0:02:18.6]}
19... Na4 {[%clk 0:01:53.2]} 20. Rxb7 {[%clk 0:02:18.5]} 20... Nc5 {[%clk
0:01:54]} 21. Rb6 {[%clk 0:02:18]} 21... Bc3 {[%clk 0:01:29.7]} 22. Qc1 {[%clk
0:02:09.1]} 22... Bxa5 {[%clk 0:01:24.4]} 23. Rb2 {[%clk 0:02:04.2]} 23... Qd8
{[%clk 0:01:19]} 24. Qh6 {[%clk 0:02:00.3]} 24... Ne6 {[%clk 0:01:04.3]} 25. Ra2
{[%clk 0:01:45.7]} 25... Bc8 {[%clk 0:00:59.7]} 26. c5 {[%clk 0:01:38.8]} 26...
dxc5 {[%clk 0:00:43.7]} 27. Rd1 {[%clk 0:01:24]} 27... Qc7 {[%clk 0:00:43.3]}
28. Bc4 {[%clk 0:01:24.7]} 28... Rd8 {[%clk 0:00:30.5]} 29. Rxd8+ {[%clk
0:01:10.4]} 29... Qxd8 {[%clk 0:00:28.5]} 30. Bxe6 {[%clk 0:01:02.6]} 30... Bxe6
{[%clk 0:00:24.3]} 31. Ng5 {[%clk 0:00:59.8]} 31... Qd1+ {[%clk 0:00:18.9]} 32.
Kh2 {[%clk 0:01:00.7]} 32... Bc7+ {[%clk 0:00:19.9]} 33. g3 {[%clk 0:01:01.6]}
33... Qh5 {[%clk 0:00:18.3]} 34. Qxh5 {[%clk 0:01:00.8]} 34... gxh5 {[%clk
0:00:19.9]} 35. Nxe6 {[%clk 0:01:00.4]} 35... fxe6 {[%clk 0:00:19.6]} 36. Rxa6
{[%clk 0:01:01.2]} 36... Kf7 {[%clk 0:00:18.6]} 37. Kg2 {[%clk 0:00:58.1]} 37...
Kf6 {[%clk 0:00:17.4]} 38. Kf3 {[%clk 0:00:53.5]} 38... Bd6 {[%clk 0:00:18.8]}
39. Ke4 {[%clk 0:00:53.5]} 39... h4 {[%clk 0:00:14]} 40. g4 {[%clk 0:00:49.4]}
40... h5 {[%clk 0:00:15.4]} 41. f3 {[%clk 0:00:40.9]} 41... hxg4 {[%clk
0:00:15.3]} 42. fxg4 {[%clk 0:00:42.6]} 42... Kg5 {[%clk 0:00:13.4]} 43. Rc6
{[%clk 0:00:40.9]} 43... Kf6 {[%clk 0:00:11]} 44. Rc8 {[%clk 0:00:42]} 44... Kf7
{[%clk 0:00:09.8]} 45. Rh8 {[%clk 0:00:40.4]} 45... Bg3 {[%clk 0:00:11.2]} 46.
Rh5 {[%clk 0:00:37.7]} 46... e5 {[%clk 0:00:06.7]} 47. Kd5 {[%clk 0:00:38.7]}
1-0